[Event "Dalheimers Hus Rapid Open"]
[Site "Dalheimers Hus, Slottsskogsgatan 12, Gothenburg, Sweden"]
[Date "2024.04.14"]
[Round "8.4"]
[White "Mohammadi, Amir"]
[Black "Cramling, Pia"]
[Result "0-1"]
[TimeControl "15 minutes + 5 seconds per move from move one."]
[BlackTitle "GM"]
[WhiteFideId "1705890"]
[BlackFideId "1700030"]
[WhiteElo "2275"]
[BlackElo "2377"]

1. e4 {[%clk 00:15:08]} {[%emt 00:00:02]} c5 {[%clk 00:15:09]} {[%emt
00:00:01]} 2. Nc3 {[%clk 00:15:11]} {[%emt 00:00:02]} Nc6 {[%clk 00:15:10]}
{[%emt 00:00:03]} 3. g3 {[%clk 00:15:15]} {[%emt 00:00:02]} g6 {[%clk
00:15:14]} {[%emt 00:00:01]} 4. Bg2 {[%clk 00:15:18]} Bg7 {[%clk 00:15:19]} 5.
d3 {[%clk 00:15:22]} {[%emt 00:00:02]} d6 {[%clk 00:15:21]} {[%emt 00:00:04]} 6.
Be3 {[%clk 00:15:25]} {[%emt 00:00:02]} e5 {[%clk 00:15:25]} 7. Qd2 {[%clk
00:15:28]} {[%emt 00:00:02]} Nge7 {[%clk 00:15:22]} {[%emt 00:00:07]} 8. Bh6
{[%clk 00:15:31]} {[%emt 00:00:03]} O-O {[%clk 00:15:24]} {[%emt 00:00:04]} 9.
h4 {[%clk 00:15:32]} {[%emt 00:00:03]} Bxh6 {[%clk 00:15:18]} {[%emt 00:00:11]}
10. Qxh6 {[%clk 00:15:35]} {[%emt 00:00:02]} f6 {[%clk 00:15:22]} {[%emt
00:00:02]} 11. Qd2 {[%clk 00:15:16]} {[%emt 00:00:23]} Rb8 {[%clk 00:14:38]}
{[%emt 00:00:48]} 12. f4 {[%clk 00:14:41]} {[%emt 00:00:41]} Bg4 {[%clk
00:13:51]} {[%emt 00:00:51]} 13. Nd1 {[%clk 00:13:32]} {[%emt 00:01:15]} exf4
{[%clk 00:11:31]} {[%emt 00:02:25]} 14. gxf4 {[%clk 00:13:21]} {[%emt
00:00:16]} f5 {[%clk 00:10:51]} {[%emt 00:00:44]} 15. Ne3 {[%clk 00:13:07]}
{[%emt 00:00:20]} Bh5 {[%clk 00:10:54]} {[%emt 00:00:02]} 16. Bf3 {[%clk
00:11:41]} {[%emt 00:01:31]} Nd4 {[%clk 00:10:14]} {[%emt 00:00:44]} 17. Bxh5
{[%clk 00:11:31]} {[%emt 00:00:16]} gxh5 {[%clk 00:10:18]} 18. c3 {[%clk
00:10:37]} {[%emt 00:00:59]} Ne6 {[%clk 00:10:18]} {[%emt 00:00:05]} 19. Nh3
{[%clk 00:09:15]} {[%emt 00:01:27]} fxe4 {[%clk 00:10:01]} {[%emt 00:00:21]} 20.
dxe4 {[%clk 00:09:13]} {[%emt 00:00:07]} Nxf4 {[%clk 00:09:35]} {[%emt
00:00:30]} 21. O-O-O {[%clk 00:09:07]} {[%emt 00:00:12]} Nxh3 {[%clk 00:08:15]}
{[%emt 00:01:25]} 22. Rxh3 {[%clk 00:08:52]} {[%emt 00:00:20]} Ng6 {[%clk
00:07:55]} {[%emt 00:00:24]} 23. Nf5 {[%clk 00:08:39]} {[%emt 00:00:19]} Qf6
{[%clk 00:07:52]} {[%emt 00:00:06]} 24. Rg3 {[%clk 00:08:18]} {[%emt 00:00:27]}
Kh8 {[%clk 00:05:53]} {[%emt 00:02:04]} 25. Qh6 {[%clk 00:07:19]} {[%emt
00:01:04]} Ne5 {[%clk 00:04:19]} {[%emt 00:01:40]} 26. Qxh5 {[%clk 00:05:42]}
{[%emt 00:01:42]} Rbd8 {[%clk 00:04:13]} {[%emt 00:00:11]} 27. Rdg1 {[%clk
00:04:19]} {[%emt 00:01:27]} Rd7 {[%clk 00:03:36]} {[%emt 00:00:41]} 28. Qe2
{[%clk 00:02:29]} {[%emt 00:01:56]} c4 {[%clk 00:02:40]} {[%emt 00:01:01]} 29.
Kb1 {[%clk 00:02:25]} {[%emt 00:00:10]} d5 {[%clk 00:01:32]} {[%emt 00:01:13]}
30. Qg2 {[%clk 00:02:28]} {[%emt 00:00:02]} Rdd8 {[%clk 00:01:21]} {[%emt
00:00:16]} 31. Ne3 {[%clk 00:01:16]} {[%emt 00:01:17]} dxe4 {[%clk 00:00:58]}
{[%emt 00:00:28]} 32. Qxe4 {[%clk 00:01:16]} {[%emt 00:00:05]} Nf3 {[%clk
00:00:51]} {[%emt 00:00:13]} 33. Rxf3 {[%clk 00:00:13]} {[%emt 00:01:07]} Qxf3
{[%clk 00:00:54]} {[%emt 00:00:02]} 34. Qe5+ {[%clk 00:00:08]} {[%emt
00:00:10]} Qf6 {[%clk 00:00:58]} {[%emt 00:00:01]} 35. Qc7 {[%clk 00:00:10]}
{[%emt 00:00:03]} Rde8 {[%clk 00:00:43]} {[%emt 00:00:18]} 36. Nd5 {[%clk
00:00:07]} {[%emt 00:00:10]} Qf5+ {[%clk 00:00:31]} {[%emt 00:00:17]} 37. Kc1
{[%clk 00:00:11]} Rf7 {[%clk 00:00:33]} {[%emt 00:00:03]} 38. Qxc4 {[%clk
00:00:14]} {[%emt 00:00:03]} Qe5 {[%clk 00:00:21]} {[%emt 00:00:15]} 39. b4
{[%clk 00:00:12]} {[%emt 00:00:09]} Rd7 {[%clk 00:00:19]} {[%emt 00:00:06]} 40.
Nf4 {[%clk 00:00:00]} {[%emt 00:00:13]} Qe3+ {[%clk 00:00:19]} {[%emt
00:00:03]} 0-1

[Event "Dalheimers Hus Rapid Open"]
[Site "Dalheimers Hus, Slottsskogsgatan 12, Gothenburg, Sweden"]
[Date "2024.04.14"]
[Round "8.5"]
[White "Aaberg, Anton"]
[Black "Svensson, Leif"]
[Result "1-0"]
[TimeControl "15 minutes + 5 seconds per move from move one."]
[WhiteTitle "IM"]
[WhiteFideId "1701991"]
[BlackFideId "1702459"]
[WhiteElo "2346"]
[BlackElo "1952"]

1. e4 {[%clk 00:15:02]} {[%emt 00:00:08]} e5 {[%clk 00:15:09]} {[%emt
00:00:01]} 2. Nf3 {[%clk 00:15:06]} {[%emt 00:00:01]} Nc6 {[%clk 00:15:13]}
{[%emt 00:00:02]} 3. Bc4 {[%clk 00:15:04]} {[%emt 00:00:06]} Nf6 {[%clk
00:15:12]} {[%emt 00:00:06]} 4. d3 {[%clk 00:15:03]} {[%emt 00:00:06]} Bc5
{[%clk 00:15:15]} {[%emt 00:00:02]} 5. O-O {[%clk 00:15:03]} {[%emt 00:00:04]}
d6 {[%clk 00:15:19]} {[%emt 00:00:02]} 6. c3 {[%clk 00:15:03]} {[%emt
00:00:05]} a6 {[%clk 00:15:12]} {[%emt 00:00:13]} 7. d4 {[%clk 00:12:23]}
{[%emt 00:02:44]} Ba7 {[%clk 00:15:04]} {[%emt 00:00:13]} 8. dxe5 {[%clk
00:11:44]} {[%emt 00:00:45]} Nxe5 {[%clk 00:12:55]} {[%emt 00:02:14]} 9. Nxe5
{[%clk 00:11:36]} {[%emt 00:00:12]} dxe5 {[%clk 00:12:59]} {[%emt 00:00:01]} 10.
Qxd8+ {[%clk 00:11:21]} {[%emt 00:00:20]} Kxd8 {[%clk 00:12:59]} {[%emt
00:00:04]} 11. Bxf7 {[%clk 00:11:13]} {[%emt 00:00:14]} Ke7 {[%clk 00:13:03]}
{[%emt 00:00:02]} 12. Bb3 {[%clk 00:11:08]} {[%emt 00:00:11]} Nxe4 {[%clk
00:13:03]} {[%emt 00:00:04]} 13. Nd2 {[%clk 00:10:26]} {[%emt 00:00:46]} Nxf2
{[%clk 00:09:45]} {[%emt 00:03:23]} 14. Rxf2 {[%clk 00:10:29]} {[%emt
00:00:04]} Rf8 {[%clk 00:09:49]} 15. Ne4 {[%clk 00:10:27]} {[%emt 00:00:07]}
Bf5 {[%clk 00:09:46]} {[%emt 00:00:08]} 16. Bg5+ {[%clk 00:09:48]} {[%emt
00:00:44]} Ke8 {[%clk 00:09:27]} {[%emt 00:00:24]} 17. Nd2 {[%clk 00:08:56]}
{[%emt 00:00:57]} Bd3 {[%clk 00:09:17]} {[%emt 00:00:15]} 18. Bh4 {[%clk
00:08:46]} {[%emt 00:00:15]} g5 {[%clk 00:05:03]} {[%emt 00:04:18]} 19. Bg3
{[%clk 00:08:49]} {[%emt 00:00:03]} h5 {[%clk 00:05:03]} {[%emt 00:00:05]} 20.
h4 {[%clk 00:08:26]} {[%emt 00:00:27]} gxh4 {[%clk 00:04:35]} {[%emt 00:00:35]}
21. Bxh4 {[%clk 00:08:30]} {[%emt 00:00:01]} Bxf2+ {[%clk 00:04:26]} {[%emt
00:00:13]} 22. Bxf2 {[%clk 00:08:32]} {[%emt 00:00:02]} Kd7 {[%clk 00:04:12]}
{[%emt 00:00:20]} 23. Rd1 {[%clk 00:08:12]} {[%emt 00:00:25]} Kc6 {[%clk
00:03:01]} {[%emt 00:01:16]} 24. Nf3 {[%clk 00:08:06]} {[%emt 00:00:11]} 1-0

[Event "Dalheimers Hus Rapid Open"]
[Site "Dalheimers Hus, Slottsskogsgatan 12, Gothenburg, Sweden"]
[Date "2024.04.14"]
[Round "8.6"]
[White "Ulff, Johan"]
[Black "Andreasson, Ingvar"]
[Result "0-1"]
[TimeControl "15 minutes + 5 seconds per move from move one."]
[WhiteFideId "1733893"]
[BlackFideId "1700294"]
[WhiteElo "2123"]
[BlackElo "2323"]

1. d4 {[%clk 00:15:07]} {[%emt 00:00:02]} Nf6 {[%clk 00:15:05]} {[%emt
00:00:05]} 2. Bf4 {[%clk 00:15:11]} {[%emt 00:00:02]} g6 {[%clk 00:14:28]}
{[%emt 00:00:42]} 3. e3 {[%clk 00:15:15]} {[%emt 00:00:02]} Bg7 {[%clk
00:14:31]} {[%emt 00:00:02]} 4. Be2 {[%clk 00:15:19]} {[%emt 00:00:01]} d6
{[%clk 00:14:30]} {[%emt 00:00:05]} 5. Nc3 {[%clk 00:14:59]} {[%emt 00:00:25]}
Nbd7 {[%clk 00:14:21]} {[%emt 00:00:14]} 6. Nf3 {[%clk 00:14:49]} {[%emt
00:00:16]} O-O {[%clk 00:14:22]} {[%emt 00:00:03]} 7. h4 {[%clk 00:12:34]}
{[%emt 00:02:20]} h5 {[%clk 00:11:12]} {[%emt 00:03:15]} 8. Qd2 {[%clk
00:11:50]} {[%emt 00:00:49]} c6 {[%clk 00:10:44]} {[%emt 00:00:33]} 9. O-O
{[%clk 00:10:58]} {[%emt 00:00:57]} b5 {[%clk 00:09:53]} {[%emt 00:00:56]} 10.
a3 {[%clk 00:10:52]} {[%emt 00:00:11]} a6 {[%clk 00:09:31]} {[%emt 00:00:27]}
11. e4 {[%clk 00:08:53]} {[%emt 00:02:04]} Ng4 {[%clk 00:09:28]} {[%emt
00:00:08]} 12. Nh2 {[%clk 00:08:31]} {[%emt 00:00:27]} e5 {[%clk 00:09:14]}
{[%emt 00:00:19]} 13. Nxg4 {[%clk 00:07:55]} {[%emt 00:00:41]} exf4 {[%clk
00:09:06]} {[%emt 00:00:13]} 14. Nh2 {[%clk 00:07:47]} {[%emt 00:00:13]} Qxh4
{[%clk 00:09:01]} {[%emt 00:00:10]} 15. Nf3 {[%clk 00:07:35]} {[%emt 00:00:18]}
Qf6 {[%clk 00:08:36]} {[%emt 00:00:29]} 16. Rae1 {[%clk 00:07:23]} {[%emt
00:00:17]} g5 {[%clk 00:05:18]} {[%emt 00:03:23]} 17. e5 {[%clk 00:07:13]}
{[%emt 00:00:15]} Qh6 {[%clk 00:05:23]} 18. exd6 {[%clk 00:06:57]} {[%emt
00:00:22]} g4 {[%clk 00:05:25]} {[%emt 00:00:02]} 19. Ne5 {[%clk 00:06:45]}
{[%emt 00:00:17]} Qxd6 {[%clk 00:04:47]} {[%emt 00:00:43]} 20. Ne4 {[%clk
00:04:33]} {[%emt 00:02:17]} Qh6 {[%clk 00:04:50]} {[%emt 00:00:02]} 21. Nd3
{[%clk 00:04:19]} {[%emt 00:00:19]} Bxd4 {[%clk 00:04:19]} {[%emt 00:00:36]} 22.
Nxf4 {[%clk 00:02:56]} {[%emt 00:01:28]} Bg7 {[%clk 00:04:02]} {[%emt
00:00:21]} 23. g3 {[%clk 00:02:17]} {[%emt 00:00:46]} h4 {[%clk 00:03:36]}
{[%emt 00:00:32]} 24. Bxg4 {[%clk 00:01:56]} {[%emt 00:00:26]} Ne5 {[%clk
00:03:40]} 25. Bd1 {[%clk 00:01:51]} {[%emt 00:00:10]} Bf5 {[%clk 00:03:28]}
{[%emt 00:00:17]} 26. Ng2 {[%clk 00:00:54]} {[%emt 00:01:02]} Qxd2 {[%clk
00:03:16]} {[%emt 00:00:17]} 27. Nxd2 {[%clk 00:00:58]} {[%emt 00:00:01]} hxg3
{[%clk 00:03:17]} {[%emt 00:00:04]} 28. fxg3 {[%clk 00:00:58]} {[%emt
00:00:04]} Bh7 {[%clk 00:02:58]} {[%emt 00:00:25]} 29. Nf4 {[%clk 00:00:55]}
{[%emt 00:00:08]} Rad8 {[%clk 00:02:58]} {[%emt 00:00:04]} 30. Nb3 {[%clk
00:00:55]} {[%emt 00:00:05]} Nc4 {[%clk 00:03:03]} 31. Nh5 {[%clk 00:00:44]}
Bxb2 {[%clk 00:03:04]} {[%emt 00:00:21]} 32. Nf6+ {[%clk 00:00:33]} Kg7 {[%clk
00:02:53]} {[%emt 00:00:31]} 33. Nxh7 {[%clk 00:00:35]} Kxh7 {[%clk 00:02:56]}
{[%emt 00:00:05]} 34. Re4 {[%clk 00:00:34]} f5 {[%clk 00:02:50]} {[%emt
00:00:17]} 35. Re6 {[%clk 00:00:25]} Rd6 {[%clk 00:02:53]} {[%emt 00:00:15]} 36.
Re7+ {[%emt 00:00:09]} Kg6 37. g4 {[%clk 00:00:24]} {[%emt 00:00:03]} f4 {[%clk
00:03:02]} 38. Be2 {[%clk 00:00:17]} {[%emt 00:00:12]} Ne5 {[%clk 00:02:56]}
{[%emt 00:00:11]} 39. Nc5 {[%clk 00:00:09]} {[%emt 00:00:13]} Bd4+ {[%clk
00:02:43]} {[%emt 00:00:18]} 40. Kg2 {[%clk 00:00:10]} {[%emt 00:00:04]} Bxc5
{[%clk 00:02:45]} {[%emt 00:00:03]} 41. Rxe5 {[%clk 00:00:14]} {[%emt
00:00:01]} Rd2 {[%clk 00:02:40]} {[%emt 00:00:11]} 42. Kf3 {[%clk 00:00:15]}
{[%emt 00:00:03]} Bd6 {[%clk 00:02:17]} {[%emt 00:00:28]} 43. Re6+ {[%clk
00:00:17]} {[%emt 00:00:03]} Rf6 {[%clk 00:02:21]} 44. Bd3+ {[%clk 00:00:21]}
{[%emt 00:00:01]} Rxd3+ {[%clk 00:02:25]} {[%emt 00:00:01]} 0-1

[Event "Dalheimers Hus Rapid Open"]
[Site "Dalheimers Hus, Slottsskogsgatan 12, Gothenburg, Sweden"]
[Date "2024.04.14"]
[Round "8.7"]
[White "Rydstrom, Tom"]
[Black "Karlsson, Stefan"]
[Result "1/2-1/2"]
[TimeControl "15 minutes + 5 seconds per move from move one."]
[WhiteTitle "FM"]
[WhiteFideId "1714830"]
[BlackFideId "1771183"]
[WhiteElo "2313"]
[BlackElo "1867"]

1. e4 {[%clk 00:15:09]} {[%emt 00:00:01]} c5 {[%clk 00:15:08]} {[%emt
00:00:02]} 2. Nf3 {[%clk 00:15:13]} {[%emt 00:00:02]} d6 {[%clk 00:15:11]} 3.
d4 {[%clk 00:15:17]} cxd4 {[%clk 00:15:15]} {[%emt 00:00:01]} 4. Nxd4 {[%clk
00:15:22]} Nf6 {[%clk 00:15:18]} {[%emt 00:00:01]} 5. Nc3 {[%clk 00:15:26]} Nc6
{[%clk 00:15:22]} {[%emt 00:00:01]} 6. Bg5 {[%clk 00:15:28]} {[%emt 00:00:04]}
e6 {[%clk 00:15:26]} 7. Qd2 {[%clk 00:15:13]} {[%emt 00:00:20]} a6 {[%clk
00:15:28]} {[%emt 00:00:02]} 8. O-O-O {[%clk 00:14:54]} {[%emt 00:00:24]} Bd7
{[%clk 00:15:32]} 9. f3 {[%clk 00:14:45]} {[%emt 00:00:15]} Nxd4 {[%clk
00:15:06]} {[%emt 00:00:31]} 10. Qxd4 {[%clk 00:14:48]} {[%emt 00:00:01]} Be7
{[%clk 00:15:07]} {[%emt 00:00:03]} 11. h4 {[%clk 00:14:50]} {[%emt 00:00:04]}
Qc7 {[%clk 00:14:53]} {[%emt 00:00:18]} 12. Kb1 {[%clk 00:14:36]} {[%emt
00:00:20]} b5 {[%clk 00:13:19]} {[%emt 00:01:38]} 13. Qd2 {[%clk 00:13:25]}
{[%emt 00:01:17]} b4 {[%clk 00:13:02]} {[%emt 00:00:22]} 14. Ne2 {[%clk
00:13:20]} {[%emt 00:00:09]} a5 {[%clk 00:13:02]} {[%emt 00:00:06]} 15. Nd4
{[%clk 00:12:15]} {[%emt 00:01:10]} Rb8 {[%clk 00:11:06]} {[%emt 00:02:00]} 16.
g4 {[%clk 00:12:00]} {[%emt 00:00:21]} h5 {[%clk 00:10:20]} {[%emt 00:00:51]}
17. gxh5 {[%clk 00:10:55]} {[%emt 00:01:10]} Nxh5 {[%clk 00:08:15]} {[%emt
00:02:10]} 18. Bxe7 {[%clk 00:10:53]} {[%emt 00:00:07]} Kxe7 {[%clk 00:08:18]}
{[%emt 00:00:02]} 19. Rg1 {[%clk 00:10:33]} {[%emt 00:00:24]} a4 {[%clk
00:07:59]} {[%emt 00:00:24]} 20. Be2 {[%clk 00:09:48]} {[%emt 00:00:52]} a3
{[%clk 00:07:09]} {[%emt 00:00:55]} 21. f4 {[%clk 00:07:14]} {[%emt 00:02:39]}
Nf6 {[%clk 00:06:32]} {[%emt 00:00:41]} 22. Qe3 {[%clk 00:04:17]} {[%emt
00:03:02]} g6 {[%clk 00:05:16]} {[%emt 00:01:21]} 23. Bf3 {[%clk 00:03:40]}
{[%emt 00:00:44]} Rxh4 {[%clk 00:04:38]} {[%emt 00:00:43]} 24. e5 {[%clk
00:03:39]} {[%emt 00:00:06]} dxe5 {[%clk 00:04:32]} {[%emt 00:00:10]} 25. fxe5
{[%clk 00:03:43]} Nh7 {[%clk 00:04:02]} {[%emt 00:00:35]} 26. Rgf1 {[%clk
00:03:03]} {[%emt 00:00:45]} Kf8 {[%clk 00:02:41]} {[%emt 00:01:26]} 27. Be2
{[%clk 00:02:41]} {[%emt 00:00:27]} Kg7 {[%clk 00:02:27]} {[%emt 00:00:19]} 28.
Qf2 {[%clk 00:02:45]} Rh6 {[%clk 00:01:30]} {[%emt 00:01:02]} 29. Qxf7+ {[%clk
00:02:47]} {[%emt 00:00:03]} Kh8 {[%clk 00:01:35]} 30. Rh1 {[%clk 00:01:52]}
{[%emt 00:00:59]} Rf8 {[%clk 00:01:03]} {[%emt 00:00:36]} 31. Qe7 {[%clk
00:01:56]} {[%emt 00:00:02]} Re8 {[%clk 00:00:53]} {[%emt 00:00:15]} 32. Qxb4
{[%clk 00:00:20]} {[%emt 00:01:41]} Rxh1 {[%clk 00:00:56]} {[%emt 00:00:03]} 33.
Rxh1 {[%clk 00:00:24]} Qxe5 {[%clk 00:00:44]} {[%emt 00:00:16]} 34. Bb5 {[%clk
00:00:10]} {[%emt 00:00:20]} Bxb5 {[%clk 00:00:24]} {[%emt 00:00:25]} 35. Qxb5
{[%clk 00:00:07]} {[%emt 00:00:07]} Qxb5 {[%clk 00:00:18]} {[%emt 00:00:12]} 36.
Nxb5 {[%clk 00:00:12]} axb2 {[%clk 00:00:22]} {[%emt 00:00:02]} 37. Kxb2 {[%clk
00:00:12]} {[%emt 00:00:05]} Rb8 {[%clk 00:00:24]} {[%emt 00:00:02]} 38. a4
{[%clk 00:00:16]} {[%emt 00:00:01]} Kg7 {[%clk 00:00:27]} {[%emt 00:00:02]} 39.
c4 {[%clk 00:00:21]} Nf6 {[%clk 00:00:30]} {[%emt 00:00:03]} 40. Kb3 {[%clk
00:00:25]} Ne4 {[%clk 00:00:32]} {[%emt 00:00:02]} 41. Kb4 {[%clk 00:00:27]}
{[%emt 00:00:03]} g5 {[%clk 00:00:28]} {[%emt 00:00:10]} 42. a5 {[%clk
00:00:31]} g4 {[%clk 00:00:24]} {[%emt 00:00:08]} 43. Re1 {[%clk 00:00:31]}
{[%emt 00:00:04]} Ng5 {[%clk 00:00:20]} {[%emt 00:00:10]} 44. Rg1 {[%clk
00:00:33]} {[%emt 00:00:04]} Kf6 {[%clk 00:00:23]} {[%emt 00:00:02]} 45. Rxg4
{[%clk 00:00:34]} {[%emt 00:00:03]} Nf7 {[%clk 00:00:23]} {[%emt 00:00:05]} 46.
a6 {[%clk 00:00:35]} {[%emt 00:00:03]} Ne5 {[%clk 00:00:26]} {[%emt 00:00:03]}
47. Rg1 {[%clk 00:00:23]} {[%emt 00:00:17]} Rc8 {[%emt 00:00:23]} 48. Rc1
{[%clk 00:00:17]} Nd3+ {[%clk 00:00:21]} {[%emt 00:00:01]} 49. Ka5 {[%clk
00:00:22]} Nxc1 {[%clk 00:00:23]} {[%emt 00:00:04]} 50. a7 {[%clk 00:00:26]}
Nb3+ {[%clk 00:00:15]} {[%emt 00:00:13]} 51. Kb6 {[%clk 00:00:30]} {[%emt
00:00:02]} Nc5 {[%clk 00:00:16]} {[%emt 00:00:04]} 52. Nc7 {[%emt 00:00:10]} e5
{[%clk 00:00:18]} {[%emt 00:00:03]} 53. Kxc5 {[%clk 00:00:06]} {[%emt
00:00:24]} Rxc7+ {[%clk 00:00:21]} {[%emt 00:00:02]} 54. Kb6 {[%clk 00:00:11]}
Rxa7 {[%clk 00:00:12]} {[%emt 00:00:14]} 55. Kxa7 {[%clk 00:00:15]} {[%emt
00:00:01]} e4 {[%clk 00:00:16]} 56. c5 {[%emt 00:00:02]} e3 {[%clk 00:00:19]}
57. c6 {[%clk 00:00:22]} {[%emt 00:00:02]} e2 {[%clk 00:00:23]} 58. c7 {[%clk
00:00:26]} e1=Q {[%clk 00:00:27]} {[%emt 00:00:01]} 59. c8=Q {[%clk 00:00:30]}
{[%emt 00:00:01]} Qa5+ {[%clk 00:00:29]} {[%emt 00:00:02]} 60. Kb8 {[%clk
00:00:34]} Qb6+ {[%clk 00:00:31]} {[%emt 00:00:03]} 61. Ka8 {[%clk 00:00:38]}
{[%emt 00:00:01]} Qa5+ {[%clk 00:00:33]} {[%emt 00:00:03]} 1/2-1/2

[Event "Dalheimers Hus Rapid Open"]
[Site "Dalheimers Hus, Slottsskogsgatan 12, Gothenburg, Sweden"]
[Date "2024.04.14"]
[Round "8.8"]
[White "Kallen, Jonas"]
[Black "Svensson, Bengt"]
[Result "0-1"]
[TimeControl "15 minutes + 5 seconds per move from move one."]
[BlackTitle "IM"]
[WhiteFideId "1712896"]
[BlackFideId "1700200"]
[WhiteElo "2021"]
[BlackElo "2281"]

1. e4 {[%clk 00:15:07]} {[%emt 00:00:03]} c5 {[%clk 00:15:07]} {[%emt
00:00:05]} 2. Nf3 {[%clk 00:15:09]} {[%emt 00:00:02]} Nc6 {[%clk 00:15:05]}
{[%emt 00:00:07]} 3. Bb5 {[%clk 00:14:54]} {[%emt 00:00:19]} g6 {[%clk
00:14:56]} {[%emt 00:00:15]} 4. O-O {[%clk 00:14:52]} {[%emt 00:00:07]} Bg7
{[%clk 00:14:59]} {[%emt 00:00:02]} 5. Re1 {[%clk 00:14:30]} {[%emt 00:00:26]}
Nf6 {[%clk 00:14:38]} {[%emt 00:00:27]} 6. c3 {[%clk 00:14:13]} {[%emt
00:00:22]} O-O {[%clk 00:14:37]} {[%emt 00:00:06]} 7. d4 {[%clk 00:13:47]}
{[%emt 00:00:30]} d5 {[%clk 00:13:44]} {[%emt 00:00:58]} 8. e5 {[%clk
00:12:41]} {[%emt 00:01:11]} Ne4 {[%clk 00:13:46]} {[%emt 00:00:04]} 9. Nbd2
{[%clk 00:12:35]} {[%emt 00:00:10]} Nxd2 {[%clk 00:12:41]} {[%emt 00:01:10]} 10.
Bxd2 {[%clk 00:12:28]} {[%emt 00:00:12]} Qb6 {[%clk 00:12:42]} {[%emt
00:00:04]} 11. Bxc6 {[%clk 00:12:15]} {[%emt 00:00:18]} bxc6 {[%clk 00:12:36]}
{[%emt 00:00:11]} 12. b3 {[%clk 00:11:53]} {[%emt 00:00:28]} Bg4 {[%clk
00:11:41]} {[%emt 00:01:00]} 13. Be3 {[%clk 00:11:47]} {[%emt 00:00:11]} cxd4
{[%clk 00:11:32]} {[%emt 00:00:14]} 14. Qxd4 {[%clk 00:10:55]} {[%emt
00:00:56]} Bxf3 {[%clk 00:11:23]} {[%emt 00:00:14]} 15. gxf3 {[%clk 00:10:51]}
{[%emt 00:00:09]} Qb7 {[%clk 00:11:14]} {[%emt 00:00:14]} 16. f4 {[%clk
00:10:18]} {[%emt 00:00:39]} Qd7 {[%clk 00:11:08]} {[%emt 00:00:12]} 17. c4
{[%clk 00:09:15]} {[%emt 00:01:08]} Qg4+ {[%clk 00:10:56]} {[%emt 00:00:17]} 18.
Kh1 {[%clk 00:09:19]} Qf3+ {[%clk 00:10:45]} {[%emt 00:00:16]} 19. Kg1 {[%clk
00:09:23]} {[%emt 00:00:02]} f6 {[%clk 00:09:45]} {[%emt 00:01:04]} 20. Qc5
{[%clk 00:08:31]} {[%emt 00:00:57]} fxe5 {[%clk 00:09:27]} {[%emt 00:00:23]} 21.
fxe5 {[%clk 00:07:41]} {[%emt 00:00:54]} Bxe5 {[%clk 00:09:18]} {[%emt
00:00:15]} 22. Rad1 {[%clk 00:07:32]} {[%emt 00:00:14]} Qh3 {[%clk 00:07:52]}
{[%emt 00:01:31]} 23. f4 {[%clk 00:07:15]} {[%emt 00:00:22]} Bxf4 {[%clk
00:07:12]} {[%emt 00:00:45]} 24. Rd2 {[%clk 00:06:45]} {[%emt 00:00:34]} Bxe3+
{[%clk 00:06:16]} {[%emt 00:01:01]} 25. Qxe3 {[%clk 00:06:45]} {[%emt
00:00:05]} Rf1+ {[%clk 00:06:18]} {[%emt 00:00:06]} 0-1